Workbook

Sheet Read Me!
A2: TFIR 2016 Retirement Choice Model
A3: First, please look carefully at:
A4: https://ucnet.universityofcalifornia.edu/compensation-and-benefits/retirement-benefits/2016-retirement-choice/
A5: Then next look at:
A6: https://senate.universityofcalifornia.edu/resources/retirement-choice-model.html
A7: This spreadsheet is intended to help new UC employees hired after July 1, 2016 choose
A8: between Savings Choice, Pension Choice, or Second Choice.
A9: This spreadsheet uses values for the PEPRA Cap and IRS Covered Compensation Limits that are
A10: effective for the year beginning July 1, 2024. You need to change these for other retirement dates.
A11: See the shaded box on page 7 of the
A12: Retirement Benefits Decision Guide 2023 (universityofcalifornia.edu) for more information:
A13: https://ucnet.universityofcalifornia.edu/forms/pdf/retirement-benefits-decision-guide.pdf
A14: The official IRS limit page is https://www.irs.gov/retirement-plans/plan-participant-employee/retirement-topics-defined-benefit-plan-benefit-limits
A15: The official PEPRA cap page is : https://www.sco.ca.gov/PEPRA_Compensation_Limits.html
A17: All inputs should be entered on the "Home_Page" tab, and users are encouraged to experiment
A18: with different values for investment returns, inflation, and retirement age.
A19: Note that investment returns and inflation are held constant for the simulations, so
A20: you should choose values that represent reasonable long-run values. The UC Investment Office
A21: currently assumes a 6.75% investment return and 2.5% inflation. Note that you must choose
A22: values so that investment return is strictly greater than inflation and both are greater than
A23: zero. Entering other values will lead to erroneous calculations. The "TFIR Retirement Plan Choice
A24: Modeling" page (see link on line 6) provides some historical data on investment returns and
A25: inflation that will help you choose reasonable values for these key inputs.
A27: The "Year of Second Choice Election" is the year of UC employment when you elect to switch
A28: from Savings to Pension choice. The election is effective the next year.
A30: The "Annuity End Age" controls the age when the withdrawals from retirement
A31: savings balances lead to zero balances. This should generally be at least 100 years for
A32: a single retiree, but employees with younger spouses should set a higher value if they
A33: expect their retirement savings to last for their spouse's life.
A35: Note that macros must be enabled for this spreadsheet to work, and you must
A36: click the "GO!" button on the Home_Page each time you change any of the input values.
A37: You must download the file onto your computer. When you open the file you will need to
A38: click "Enable Macros" at the top of the home page , and on a Windows computer you
A39: may also need to:
A40: 1. Close the Excel File, 2. Right click the Excel file name in the Explorer Window, 3. go to
A41: the bottom of the popup window and click "properties", 4. at the bottom where it says "Security"
A42: click the "unblock" button and then click apply. 5. reopen the Excel File.
A44: The worksheets are locked except for the input boxes on the Home_Page, but you can
A45: copy the graphs and tables on the Tabular_Output sheet to your own spreadsheet
A46: to facilitate comparison across different input assumptions.
A48: The detailed computations are carried out on tab "Sheet1," and there is a full description at
A49: https://senate.universityofcalifornia.edu/_files/committees/tfir/excel-sheet-description.pdf
A52: © David Brownstone, Jim Chalfant, and Daniel Hare 2022 and 2024

Sheet Home_Page
A1: TFIR 2016 Retirement Choice Model Version 4.6 PEPRA and IRS Caps updated to July 2024
B2: February 20, 2024 | F2: Employee Contrib. rate (%) | I2: 7
A3: Faculty Title? (Yes/No) | D3: yes | F3: Average Rate of Return (%) | I3: 6.75
A4: Starting Age at UC: | D4: 33
A5: Must be greater than 24 | F5: Average Inflation Rate (%) | I5: 2.5
A6: Starting Annual Base Salary | D6: 100000
A7: PEPRA Cap | D7: 151146 | F7: Year of Second Choice Election | I7: 6
A8: IRS Compensation Cap (CCL) | D8: 345000 | F8: Must be between 5 and 10 years
A9: Minimum Retirement Age | D9: 65
A10: Must be at least 60 and less than | D10: =IF(D4>24,(D4+45),"") -> 78 | F10: Annuity End Age | I10: 100
A11: Prepared For: | D11: Your Name Here
A12: If you change any boxed numbers above row 10 you must hit the "Go!" button to update calculations
A13: The information below is only valid for UC employees first hired after July 1, 2016
A46: Note: for each age before | C46: =D9 -> 65 | D46: the graphs show the annuitized wealth from UC Retirement
A47: sources if you separate at that age and wait until age | E47: =D9 -> 65 | F47: to retire.
A48: For all ages equal or above age | D48: =D9 -> 65 | E48: the graphs show the UC pension from retiring at that
A49: age plus the annuitized value of the UC Retirement Savings balance starting at that age until
A50: the annuity end age of | C50: =I10 -> 100
A51: PEPRA and IRS CCL cap values can be found at: https://ucnet.universityofcalifornia.edu/compensation-and-benefits/retirement-benefits/2016-retirement-choice/index.html
A52: If you are not subject to the PEPRA cap set PEPRA Cap = IRS CCL cap
A53: If you would like to see more detail, the data used to create the above graphs
A54: can be copied and pasted from the "Tabular_Output" sheet

Sheet Tabular_Output
A1: All Inputs in the first 8 rows must be changed on the Home_Page | K1: last row | M1: Workspace | O1: Percent Income | R1: Projected Annual Income
A2: Faculty Title? (Yes/No) | D2: =Home_Page!D3 -> yes | F2: Average Rate of Return (%) | I2: =Home_Page!I3 -> 6.75 | K2: =MAX(70,(Home_Page!$D$9+5))-(Home_Page!D4)+2 -> 39 | L2: Salary | M2: Age | N2: Savings Choice | O2: Pension Choice | P2: Second Choice | Q2: Savings Choice | R2: Pension Choice | S2: Second Choice
A3: Starting Age at UC: | D3: =Home_Page!D4 -> 33 | F3: Employee Contrib. rate (%) | I3: =Home_Page!$I$2 -> 7 | L3: =Sheet1!D3 -> 100000 | M3: =Sheet1!A3 -> 33 | N3: =Sheet1!AB3 -> 0 | O3: =Sheet1!AA3 -> 0 | P3: =Sheet1!AC3 -> 0 | Q3: =Sheet1!Q3 -> 0 | R3: =Sheet1!Y3 -> 0 | S3: =Sheet1!AP3 -> 0
F4: Average Inflation Rate (%) | I4: =Home_Page!I5 -> 2.5 | L4: =Sheet1!D4 -> 105700 | M4: =Sheet1!A4 -> 34 | N4: =Sheet1!AB4 -> 0.01402168128 | O4: =Sheet1!AA4 -> 0.004673893761 | P4: =Sheet1!AC4 -> 0.01402168128 | Q4: =Sheet1!Q4 -> 6981.861017 | R4: =Sheet1!Y4 -> 2327.287006 | S4: =Sheet1!AP4 -> 6981.861017
A5: Starting Salary | D5: =Home_Page!D6 -> 100000 | L5: =Sheet1!D5 -> 111724.9 | M5: =Sheet1!A5 -> 35 | N5: =Sheet1!AB5 -> 0.02790544439 | O5: =Sheet1!AA5 -> 0.009301814796 | P5: =Sheet1!AC5 -> 0.02790544439 | Q5: =Sheet1!Q5 -> 13895.04799 | R5: =Sheet1!Y5 -> 4631.682664 | S5: =Sheet1!AP5 -> 13895.04799
A6: or Covered Compensation | F6: =Home_Page!F7 -> Year of Second Choice Election | I6: =Home_Page!I7 -> 6 | L6: =Sheet1!D6 -> 118037.3568 | M6: =Sheet1!A6 -> 36 | N6: =Sheet1!AB6 -> 0.04165264589 | O6: =Sheet1!AA6 -> 0.0138842153 | P6: =Sheet1!AC6 -> 0.04165264589 | Q6: =Sheet1!Q6 -> 20740.2364 | R6: =Sheet1!Y6 -> 6913.412135 | S6: =Sheet1!AP6 -> 20740.2364
A7: =Home_Page!A9 -> Minimum Retirement Age | D7: =Home_Page!D9 -> 65 | F7: Annuity End Age | I7: =Home_Page!I10 -> 100 | L7: =Sheet1!D7 -> 124706.4675 | M7: =Sheet1!A7 -> 37 | N7: =Sheet1!AB7 -> 0.05525819005 | O7: =Sheet1!AA7 -> 0.01841939668 | P7: =Sheet1!AC7 -> 0.05525819005 | Q7: =Sheet1!Q7 -> 27514.88892 | R7: =Sheet1!Y7 -> 9171.62964 | S7: =Sheet1!AP7 -> 27514.88892
A8: Prepared For: | D8: =Home_Page!$D$11 -> Your Name Here | L8: =Sheet1!D8 -> 131752.3829 | M8: =Sheet1!A8 -> 38 | N8: =Sheet1!AB8 -> 0.06872353656 | O8: =Sheet1!AA8 -> 0.05256951372 | P8: =Sheet1!AC8 -> 0.06872353656 | Q8: =Sheet1!Q8 -> 34219.73237 | R8: =Sheet1!Y8 -> 26176.10764 | S8: =Sheet1!AP8 -> 34219.73237
A9: =Sheet1!A1 -> The information below is only valid for UC employees first hired after July 1, 2016 | L9: =Sheet1!D9 -> 139196.3926 | M9: =Sheet1!A9 -> 39 | N9: =Sheet1!AB9 -> 0.08205013009 | O9: =Sheet1!AA9 -> 0.06495510631 | P9: =Sheet1!AC9 -> 0.08205013009 | Q9: =Sheet1!Q9 -> 40855.48609 | R9: =Sheet1!Y9 -> 32343.30573 | S9: =Sheet1!AP9 -> 40855.48609
C10: Percent of Income Replacement | G10: Projected Annual Income | L10: =Sheet1!D10 -> 146991.3905 | M10: =Sheet1!A10 -> 40 | N10: =Sheet1!AB10 -> 0.0952394004 | O10: =Sheet1!AA10 -> 0.07809784064 | P10: =Sheet1!AC10 -> 0.09306817836 | Q10: =Sheet1!Q10 -> 47422.86203 | R10: =Sheet1!Y10 -> 38887.50985 | S10: =Sheet1!AP10 -> 46341.73843
A11: Salary | B11: Separation Age | C11: Savings Choice | D11: Pension Choice | E11: Second Choice | F11: Savings Choice | G11: Pension Choice | H11: Second Choice | L11: =Sheet1!D12 -> 163837.7798 | M11: =Sheet1!A12 -> 42 | N11: =Sheet1!AB12 -> 0.1211932142 | O11: =Sheet1!AA12 -> 0.1068841664 | P11: =Sheet1!AC12 -> 0.1172599676 | Q11: =Sheet1!Q12 -> 60346.12833 | R11: =Sheet1!Y12 -> 53221.17797 | S11: =Sheet1!AP12 -> 58387.63413
A12: 100000 | B12: 33 | C12: 0 | D12: 0 | E12: 0 | F12: 0 | G12: 0 | H12: 0 | L12: =Sheet1!D13 -> 172848.8577 | M12: =Sheet1!A13 -> 43 | N12: =Sheet1!AB13 -> 0.1339547574 | O12: =Sheet1!AA13 -> 0.1226493395 | P12: =Sheet1!AC13 -> 0.130550774 | Q12: =Sheet1!Q13 -> 66700.52468 | R12: =Sheet1!Y13 -> 61071.18146 | S12: =Sheet1!AP13 -> 65005.56825
A13: 105700 | B13: 34 | C13: 0.01402168128 | D13: 0.004673893761 | E13: 0.01402168128 | F13: 6981.861017 | G13: 2327.287006 | H13: 6981.861017 | L13: =Sheet1!D14 -> 182182.696 | M13: =Sheet1!A14 -> 44 | N13: =Sheet1!AB14 -> 0.1465668679 | O13: =Sheet1!AA14 -> 0.1394133639 | P13: =Sheet1!AC14 -> 0.144718319 | Q13: =Sheet1!Q14 -> 72980.51358 | R13: =Sheet1!Y14 -> 69418.54624 | S13: =Sheet1!AP14 -> 72060.05967
A14: 111724.9 | B14: 35 | C14: 0.02790544439 | D14: 0.009301814796 | E14: 0.02790544439 | F14: 13895.04799 | G14: 4631.682664 | H14: 13895.04799 | L14: =Sheet1!D15 -> 192020.5616 | M14: =Sheet1!A15 -> 45 | N14: =Sheet1!AB15 -> 0.159019481 | O14: =Sheet1!AA15 -> 0.1572110948 | P14: =Sheet1!AC15 -> 0.159808881 | Q14: =Sheet1!Q15 -> 79181.08342 | R14: =Sheet1!Y15 -> 78280.62783 | S14: =Sheet1!AP15 -> 79574.15188
A15: 118037.3568 | B15: 36 | C15: 0.04165264589 | D15: 0.0138842153 | E15: 0.04165264589 | F15: 20740.2364 | G15: 6913.412135 | H15: 20740.2364 | L15: =Sheet1!D16 -> 202197.6514 | M15: =Sheet1!A16 -> 46 | N15: =Sheet1!AB16 -> 0.1713146138 | O15: =Sheet1!AA16 -> 0.1761248038 | P15: =Sheet1!AC16 -> 0.175892614 | Q15: =Sheet1!Q16 -> 85303.23856 | R15: =Sheet1!Y16 -> 87698.39202 | S15: =Sheet1!AP16 -> 87582.77698
A16: 124706.4675 | B16: 37 | C16: 0.05525819005 | D16: 0.01841939668 | E16: 0.05525819005 | F16: 27514.88892 | G16: 9171.62964 | H16: 27514.88892 | L16: =Sheet1!D17 -> 212711.9293 | M16: =Sheet1!A17 -> 47 | N16: =Sheet1!AB17 -> 0.18344274 | O16: =Sheet1!AA17 -> 0.1961993681 | P16: =Sheet1!AC17 -> 0.1930201171 | Q16: =Sheet1!Q17 -> 91342.23562 | R16: =Sheet1!Y17 -> 97694.1846 | S16: =Sheet1!AP17 -> 96111.12987
A17: 131752.3829 | B17: 38 | C17: 0.06872353656 | D17: 0.05256951372 | E17: 0.06872353656 | F17: 34219.73237 | G17: 26176.10764 | H17: 34219.73237 | L17: =Sheet1!D18 -> 223560.2377 | M17: =Sheet1!A18 -> 48 | N17: =Sheet1!AB18 -> 0.1953947671 | O17: =Sheet1!AA18 -> 0.2174939211 | P17: =Sheet1!AC18 -> 0.211249075 | Q17: =Sheet1!Q18 -> 97293.547 | R17: =Sheet1!Y18 -> 108297.4501 | S17: =Sheet1!AP18 -> 105187.9337
A18: 139196.3926 | B18: 39 | C18: 0.08205013009 | D18: 0.06495510631 | E18: 0.08205013009 | F18: 40855.48609 | G18: 32343.30573 | H18: 40855.48609 | L18: =Sheet1!D19 -> 234738.2495 | M18: =Sheet1!A19 -> 49 | N18: =Sheet1!AB19 -> 0.2071620555 | O18: =Sheet1!AA19 -> 0.2388870009 | P18: =Sheet1!AC19 -> 0.2299426047 | Q18: =Sheet1!Q19 -> 103152.8709 | R18: =Sheet1!Y19 -> 118949.7754 | S18: =Sheet1!AP19 -> 114496.0633
A19: 146991.3905 | B19: 40 | C19: 0.0952394004 | D19: 0.07809784064 | E19: 0.09306817836 | F19: 47422.86203 | G19: 38887.50985 | H19: 46341.73843 | L19: =Sheet1!D20 -> 246475.162 | M19: =Sheet1!A20 -> 50 | N19: =Sheet1!AB20 -> 0.2187364375 | O19: =Sheet1!AA20 -> 0.2599012117 | P19: =Sheet1!AC20 -> 0.248729666 | Q19: =Sheet1!Q20 -> 108916.1403 | R19: =Sheet1!Y20 -> 129413.4492 | S19: =Sheet1!AP20 -> 123850.7654
A20: 163837.7798 | B20: 42 | C20: 0.1211932142 | D20: 0.1068841664 | E20: 0.1172599676 | F20: 60346.12833 | G20: 53221.17797 | H20: 58387.63413 | L20: =Sheet1!D21 -> 258798.9201 | M20: =Sheet1!A21 -> 51 | N20: =Sheet1!AB21 -> 0.2301210756 | O20: =Sheet1!AA21 -> 0.280233999 | P20: =Sheet1!AC21 -> 0.2673278247 | Q20: =Sheet1!Q21 -> 114584.9299 | R20: =Sheet1!Y21 -> 139537.8196 | S20: =Sheet1!AP21 -> 133111.4066
A21: 172848.8577 | B21: 43 | C21: 0.1339547574 | D21: 0.1226493395 | E21: 0.130550774 | F21: 66700.52468 | G21: 61071.18146 | H21: 65005.56825 | L21: =Sheet1!D22 -> 271738.8661 | M21: =Sheet1!A22 -> 52 | N21: =Sheet1!AB22 -> 0.2413190803 | O21: =Sheet1!AA22 -> 0.3010522287 | P21: =Sheet1!AC22 -> 0.2864558979 | Q21: =Sheet1!Q22 -> 120160.7885 | R21: =Sheet1!Y22 -> 149903.9079 | S21: =Sheet1!AP22 -> 142635.9098
A22: 182182.696 | B22: 44 | C22: 0.1465668679 | D22: 0.1394133639 | E22: 0.144718319 | F22: 72980.51358 | G22: 69418.54624 | H22: 72060.05967 | L22: =Sheet1!D23 -> 285325.8094 | M22: =Sheet1!A23 -> 53 | N22: =Sheet1!AB23 -> 0.2523335111 | O22: =Sheet1!AA23 -> 0.3226173412 | P22: =Sheet1!AC23 -> 0.3062886 | Q22: =Sheet1!Q23 -> 125645.2396 | R22: =Sheet1!Y23 -> 160641.894 | S22: =Sheet1!AP23 -> 152511.2711
A23: 192020.5616 | B23: 45 | C23: 0.159019481 | D23: 0.1572110948 | E23: 0.159808881 | F23: 79181.08342 | G23: 78280.62783 | H23: 79574.15188 | L23: =Sheet1!D24 -> 299592.0999 | M23: =Sheet1!A24 -> 54 | N23: =Sheet1!AB24 -> 0.2631673775 | O23: =Sheet1!AA24 -> 0.3449490234 | P23: =Sheet1!AC24 -> 0.3268445615 | Q23: =Sheet1!Q24 -> 131039.7817 | R23: =Sheet1!Y24 -> 171761.5806 | S23: =Sheet1!AP24 -> 162746.7674
A24: 202197.6514 | B24: 46 | C24: 0.1713146138 | D24: 0.1761248038 | E24: 0.175892614 | F24: 85303.23856 | G24: 87698.39202 | H24: 87582.77698 | L24: =Sheet1!D25 -> 314571.7049 | M24: =Sheet1!A25 -> 55 | N24: =Sheet1!AB25 -> 0.2738236395 | O24: =Sheet1!AA25 -> 0.3680680241 | P24: =Sheet1!AC25 -> 0.3481434484 | Q24: =Sheet1!Q25 -> 136345.8886 | R24: =Sheet1!Y25 -> 183273.2992 | S24: =Sheet1!AP25 -> 173352.1909
A25: 212711.9293 | B25: 47 | C25: 0.18344274 | D25: 0.1961993681 | E25: 0.1930201171 | F25: 91342.23562 | G25: 97694.1846 | H25: 96111.12987 | L25: =Sheet1!D26 -> 330300.2901 | M25: =Sheet1!A26 -> 56 | N25: =Sheet1!AB26 -> 0.2843052087 | O25: =Sheet1!AA26 -> 0.3919961671 | P25: =Sheet1!AC26 -> 0.3702059749 | Q25: =Sheet1!Q26 -> 141565.0102 | R25: =Sheet1!Y26 -> 195187.9167 | S25: =Sheet1!AP26 -> 184337.8559
A26: 223560.2377 | B26: 48 | C26: 0.1953947671 | D26: 0.2174939211 | E26: 0.211249075 | F26: 97293.547 | G26: 108297.4501 | H26: 105187.9337 | L26: =Sheet1!D27 -> 346815.3046 | M26: =Sheet1!A27 -> 57 | N26: =Sheet1!AB27 -> 0.2946149489 | O26: =Sheet1!AA27 -> 0.4167563662 | P26: =Sheet1!AC27 -> 0.393053917 | Q26: =Sheet1!Q27 -> 146698.5724 | R26: =Sheet1!Y27 -> 207516.8425 | S26: =Sheet1!AP27 -> 195714.6055
A27: 234738.2495 | B27: 49 | C27: 0.2071620555 | D27: 0.2388870009 | E27: 0.2299426047 | F27: 103152.8709 | G27: 118949.7754 | H27: 114496.0633 | L27: =Sheet1!D28 -> 364156.0699 | M27: =Sheet1!A28 -> 58 | N27: =Sheet1!AB28 -> 0.304755677 | O27: =Sheet1!AA28 -> 0.4423726402 | P27: =Sheet1!AC28 -> 0.4167101276 | Q27: =Sheet1!Q28 -> 151747.9779 | R27: =Sheet1!Y28 -> 220272.0365 | S27: =Sheet1!AP28 -> 207493.8188
A28: 246475.162 | B28: 50 | C28: 0.2187364375 | D28: 0.2599012117 | E28: 0.248729666 | F28: 108916.1403 | G28: 129413.4492 | H28: 123850.7654 | L28: =Sheet1!D29 -> 381999.7173 | M28: =Sheet1!A29 -> 59 | N28: =Sheet1!AB29 -> 0.3147301636 | O28: =Sheet1!AA29 -> 0.46887013 | P28: =Sheet1!AC29 -> 0.4411985524 | Q28: =Sheet1!Q29 -> 156714.6062 | R28: =Sheet1!Y29 -> 233466.0171 | S28: =Sheet1!AP29 -> 219687.4192
A29: 258798.9201 | B29: 51 | C29: 0.2301210756 | D29: 0.280233999 | E29: 0.2673278247 | F29: 114584.9299 | G29: 139537.8196 | H29: 133111.4066 | L29: =Sheet1!D30 -> 400335.7037 | M29: =Sheet1!A30 -> 60 | N29: =Sheet1!AB30 -> 0.3245317903 | O29: =Sheet1!AA30 -> 0.4962676414 | P29: =Sheet1!AC30 -> 0.4665367722 | Q29: =Sheet1!Q30 -> 161595.1618 | R29: =Sheet1!Y30 -> 247108.1484 | S29: =Sheet1!AP30 -> 232304.1608
A30: 271738.8661 | B30: 52 | C30: 0.2413190803 | D30: 0.3010522287 | E30: 0.2864558979 | F30: 120160.7885 | G30: 149903.9079 | H30: 142635.9098 | L30: =Sheet1!D31 -> 419151.4818 | M30: =Sheet1!A31 -> 61 | N30: =Sheet1!AB31 -> 0.3341543708 | O30: =Sheet1!AA31 -> 0.5245855213 | P30: =Sheet1!AC31 -> 0.4927438783 | Q30: =Sheet1!Q31 -> 166386.5644 | R30: =Sheet1!Y31 -> 261208.5618 | S30: =Sheet1!AP31 -> 245353.5497
A31: 285325.8094 | B31: 53 | C31: 0.2523335111 | D31: 0.3226173412 | E31: 0.3062886 | F31: 125645.2396 | G31: 160641.894 | H31: 152511.2711 | L31: =Sheet1!D32 -> 438432.45 | M31: =Sheet1!A32 -> 62 | N31: =Sheet1!AB32 -> 0.3435921618 | O31: =Sheet1!AA32 -> 0.5538456856 | P31: =Sheet1!AC32 -> 0.5198404993 | Q31: =Sheet1!Q32 -> 171085.9541 | R31: =Sheet1!Y32 -> 275778.1698 | S31: =Sheet1!AP32 -> 258845.8576
A32: 299592.0999 | B32: 54 | C32: 0.2631673775 | D32: 0.3449490234 | E32: 0.3268445615 | F32: 131039.7817 | G32: 171761.5806 | H32: 162746.7674 | L32: =Sheet1!D33 -> 458161.9102 | M32: =Sheet1!A33 -> 63 | N32: =Sheet1!AB33 -> 0.3528398708 | O32: =Sheet1!AA33 -> 0.5840716468 | P32: =Sheet1!AC33 -> 0.5478488287 | Q32: =Sheet1!Q33 -> 175690.6957 | R32: =Sheet1!Y33 -> 290828.6802 | S32: =Sheet1!AP33 -> 272792.1355
A33: 314571.7049 | B33: 55 | C33: 0.2738236395 | D33: 0.3680680241 | E33: 0.3481434484 | F33: 136345.8886 | G33: 183273.2992 | H33: 173352.1909 | L33: =Sheet1!D34 -> 477633.7914 | M33: =Sheet1!A34 -> 64 | N33: =Sheet1!AB34 -> 0.3618926632 | O33: =Sheet1!AA34 -> 0.6152885422 | P33: =Sheet1!AC34 -> 0.5767926514 | Q33: =Sheet1!Q34 -> 180198.3818 | R33: =Sheet1!Y34 -> 306372.6097 | S33: =Sheet1!AP34 -> 287204.2265
A34: 330300.2901 | B34: 56 | C34: 0.2843052087 | D34: 0.3919961671 | E34: 0.3702059749 | F34: 141565.0102 | G34: 195187.9167 | H34: 184337.8559 | L34: =Sheet1!D35 -> 497933.2275 | M34: =Sheet1!A35 -> 65 | N34: =Sheet1!AB35 -> 0.3707334464 | O34: =Sheet1!AA35 -> 0.6475129843 | P34: =Sheet1!AC35 -> 0.6066871941 | Q34: =Sheet1!Q35 -> 184600.5015 | R34: =Sheet1!Y35 -> 322418.2302 | S34: =Sheet1!AP35 -> 302089.7127
A35: 346815.3046 | B35: 57 | C35: 0.2946149489 | D35: 0.4167563662 | E35: 0.393053917 | F35: 146698.5724 | G35: 207516.8425 | H35: 195714.6055 | L35: =Sheet1!D36 -> 519095.3897 | M35: =Sheet1!A36 -> 66 | N35: =Sheet1!AB36 -> 0.3931363674 | O35: =Sheet1!AA36 -> 0.6639893013 | P35: =Sheet1!AC36 -> 0.6267524098 | Q35: =Sheet1!Q36 -> 204075.2758 | R35: =Sheet1!Y36 -> 344673.7851 | S35: =Sheet1!AP36 -> 325344.2864
A36: 364156.0699 | B36: 58 | C36: 0.304755677 | D36: 0.4423726402 | E36: 0.4167101276 | F36: 151747.9779 | G36: 220272.0365 | H36: 207493.8188 | L36: =Sheet1!D37 -> 541156.9438 | M36: =Sheet1!A37 -> 67 | N36: =Sheet1!AB37 -> 0.4167564783 | O36: =Sheet1!AA37 -> 0.6806357701 | P36: =Sheet1!AC37 -> 0.6470747363 | Q36: =Sheet1!Q37 -> 225530.6621 | R36: =Sheet1!Y37 -> 368330.7731 | S36: =Sheet1!AP37 -> 350168.9867
A37: 381999.7173 | B37: 59 | C37: 0.3147301636 | D37: 0.46887013 | E37: 0.4411985524 | F37: 156714.6062 | G37: 233466.0171 | H37: 219687.4192 | L37: =Sheet1!D38 -> 564156.1139 | M37: =Sheet1!A38 -> 68 | N37: =Sheet1!AB38 -> 0.4417040995 | O37: =Sheet1!AA38 -> 0.6975111242 | P37: =Sheet1!AC38 -> 0.6677238091 | Q37: =Sheet1!Q38 -> 249190.0682 | R37: =Sheet1!Y38 -> 393505.1652 | S37: =Sheet1!AP38 -> 376700.4693
A38: 400335.7037 | B38: 60 | C38: 0.3245317903 | D38: 0.4962676414 | E38: 0.4665367722 | F38: 161595.1618 | G38: 247108.1484 | H38: 232304.1608 | L38: =Sheet1!D39 -> 588132.7487 | M38: =Sheet1!A39 -> 69 | N38: =Sheet1!AB39 -> 0.4681038222 | O38: =Sheet1!AA39 -> 0.7146800812 | P38: =Sheet1!AC39 -> 0.6887765904 | Q38: =Sheet1!Q39 -> 275307.1876 | R38: =Sheet1!Y39 -> 420326.7606 | S38: =Sheet1!AP39 -> 405092.0694
A39: 419151.4818 | B39: 61 | C39: 0.3341543708 | D39: 0.5245855213 | E39: 0.4927438783 | F39: 166386.5644 | G39: 261208.5618 | H39: 245353.5497 | L39: =Sheet1!D40 -> 613128.3906 | M39: =Sheet1!A40 -> 70 | N39: =Sheet1!AB40 -> 0.4960968921 | O39: =Sheet1!AA40 -> 0.7322143897 | P39: =Sheet1!AC40 -> 0.7103186414 | Q39: =Sheet1!Q40 -> 304171.089 | R39: =Sheet1!Y40 -> 448941.4303 | S39: =Sheet1!AP40 -> 435516.5254
A40: 438432.45 | B40: 62 | C40: 0.3435921618 | D40: 0.5538456856 | E40: 0.5198404993 | F40: 171085.9541 | G40: 275778.1698 | H40: 258845.8576 | L40: =Sheet1!D41 -> 639186.3471 | M40: =Sheet1!A41 -> 71 | N40: =Sheet1!AB41 -> 0.5258440856 | O40: =Sheet1!AA41 -> 0.7501940926 | P40: =Sheet1!AC41 -> 0.732445658 | Q40: =Sheet1!Q41 -> 336112.3602 | R40: =Sheet1!Y41 -> 479513.8217 | S40: =Sheet1!AP41 -> 468169.2646
A41: 458161.9102 | B41: 63 | C41: 0.3528398708 | D41: 0.5840716468 | E41: 0.5478488287 | F41: 175690.6957 | G41: 290828.6802 | H41: 272792.1355 | L41: =Sheet1!D42 -> 666351.7669 | M41: =Sheet1!A42 -> 72 | N41: =Sheet1!AB42 -> 0.5575292024 | O41: =Sheet1!AA42 -> 0.768709059 | P41: =Sheet1!AC42 -> 0.7552653325 | Q41: =Sheet1!Q42 -> 371510.5692 | R41: =Sheet1!Y42 -> 512230.6397 | S41: =Sheet1!AP42 -> 503272.3888
A42: 477633.7914 | B42: 64 | C42: 0.3618926632 | D42: 0.6152885422 | E42: 0.5767926514 | F42: 180198.3818 | G42: 306372.6097 | H42: 287204.2265 | L42: =Sheet1!D43 -> 694671.717 | M42: =Sheet1!A43 -> 73 | N42: =Sheet1!AB43 -> 0.5913633352 | O42: =Sheet1!AA43 -> 0.7878608557 | P42: =Sheet1!AC43 -> 0.7788996298 | Q42: =Sheet1!Q43 -> 410803.3834 | R42: =Sheet1!Y43 -> 547304.6533 | S42: =Sheet1!AP43 -> 541079.5432
A43: 497933.2275 | B43: 65 | C43: 0.3707334464 | D43: 0.6475129843 | E43: 0.6066871941 | F43: 184600.5015 | G43: 322418.2302 | H43: 302089.7127 | L43: =Sheet1!D44 -> 724195.265 | M43: =Sheet1!A44 -> 74 | N43: =Sheet1!AB44 -> 0.6275901229 | O43: =Sheet1!AA44 -> 0.7940940584 | P43: =Sheet1!AC44 -> 0.8034875853 | Q43: =Sheet1!Q44 -> 454497.7954 | R43: =Sheet1!Y44 -> 575079.157 | S43: =Sheet1!AP44 -> 581881.9047
A44: 519095.3897 | B44: 66 | C44: 0.3931363674 | D44: 0.6639893013 | E44: 0.6267524098 | F44: 204075.2758 | G44: 344673.7851 | H44: 325344.2864 | L44: =Sheet1!D45 -> 754973.5637 | M44: =Sheet1!A45 -> 75 | N44: =Sheet1!AB45 -> 0.6664922667 | O44: =Sheet1!AA45 -> 0.801671056 | P44: =Sheet1!AC45 -> 0.8291887749 | Q44: =Sheet1!Q45 -> 503184.0418 | R44: =Sheet1!Y45 -> 605240.4541 | S44: =Sheet1!AP45 -> 626015.6044
A45: 541156.9438 | B45: 67 | C45: 0.4167564783 | D45: 0.6806357701 | E45: 0.6470747363 | F45: 225530.6621 | G45: 368330.7731 | H45: 350168.9867 | L45: =Sheet1!D46 -> 787059.9402 | M45: =Sheet1!A46 -> 76 | N45: =Sheet1!AB46 -> 0.7083996732 | O45: =Sheet1!AA46 -> 0.8107331296 | P45: =Sheet1!AC46 -> 0.8561876502 | Q45: =Sheet1!Q46 -> 557553.0044 | R45: =Sheet1!Y46 -> 638095.5685 | S45: =Sheet1!AP46 -> 673871.0007
A46: 564156.1139 | B46: 68 | C46: 0.4417040995 | D46: 0.6975111242 | E46: 0.6677238091 | F46: 249190.0682 | G46: 393505.1652 | H46: 376700.4693 | L46: =Sheet1!D47 -> 820509.9876 | M46: =Sheet1!A47 -> 77 | N46: =Sheet1!AB47 -> 0.7536997234 | O46: =Sheet1!AA47 -> 0.8214467307 | P46: =Sheet1!AC47 -> 0.8846990028 | Q46: =Sheet1!Q47 -> 618418.1507 | R46: =Sheet1!Y47 -> 674005.2469 | S46: =Sheet1!AP47 -> 725904.3678
A47: 588132.7487 | B47: 69 | C47: 0.4681038222 | D47: 0.7146800812 | E47: 0.6887765904 | F47: 275307.1876 | G47: 420326.7606 | H47: 405092.0694 | L47: =Sheet1!D48 -> 855381.6621 | M47: =Sheet1!A48 -> 78 | N47: =Sheet1!AB48 -> 0.8028503411 | O47: =Sheet1!AA48 -> 0.8340091945 | P47: =Sheet1!AC48 -> 0.9149749186 | Q47: =Sheet1!Q48 -> 686743.4592 | R47: =Sheet1!Y48 -> 713396.171 | S47: =Sheet1!AP48 -> 782652.7667
A48: 613128.3906 | B48: 70 | C48: 0.4960968921 | D48: 0.7322143897 | E48: 0.7103186414 | F48: 304171.089 | G48: 448941.4303 | H48: 435516.5254 | L48: =Sheet1!D49 -> 891735.3828 | M48: =Sheet1!A49 -> 79 | N48: =Sheet1!AB49 -> 0.8563967955 | O48: =Sheet1!AA49 -> 0.8486560842 | P48: =Sheet1!AC49 -> 0.9473137166 | Q48: =Sheet1!Q49 -> 763679.3242 | R48: =Sheet1!Y49 -> 756776.6581 | S48: =Sheet1!AP49 -> 844753.1597
L49: =Sheet1!D50 -> 929634.1365 | M49: =Sheet1!A50 -> 80 | N49: =Sheet1!AB50 -> 0.9149935446 | O49: =Sheet1!AA50 -> 0.8656707401 | P49: =Sheet1!AC50 -> 0.9697210034 | Q49: =Sheet1!Q50 -> 850609.2338 | R49: =Sheet1!Y50 -> 804757.071 | S49: =Sheet1!AP50 -> 901485.7477

Sheet Sheet1
A1: =Home_Page!$A$13 -> The information below is only valid for UC employees first hired after July 1, 2016 | P1: Savings Choice | U1: Pension Choice | AA1: REPLACEMENT RATIOS | AI1: Second Choice
A2: Age | B2: Service | C2: Salary Growth | D2: Salary | E2: CCL | F2: PEPRA | G2: Max | H2: HAPC | I2: Benefit | J2: Benefit55 | K2: HAPC1 | L2: CBenefit | M2: CBenefit60 | N2: Age Factor | O2: Annual | P2: Inc. Bal. | Q2: Annuitization | S2: S1 = Above | T2: Inc. Bal. | U2: Annuitization | V2: S2 = 5%all | W2: Inc Bal | X2: Ann | Y2: Tier16 Plus | AA2: Pension | AB2: Savings | AC2: 2nd Choice | AE2: HAPC12nd | AF2: Ben65 | AG2: Ben60 | AH2: DC Bal | AI2: Ann | AJ2: S1 (Above) | AK2: Acc Balance | AL2: Annuity | AM2: S2 (5% all) | AN2: Acc Bal | AO2: Annuity | AP2: 2nd Choice | BA2: Salary Growth | BB2: Staff Salaries
A3: =$A$53 -> 33 | B3: 0 | C3: =BA3*$Q$53+BB3*(1-$Q$53) -> 2.7 | D3: =$B$53 -> 100000 | E3: =Home_Page!D8 -> 345000 | F3: =Home_Page!D7 -> 151146 | G3: =MIN(D3,F3) -> 100000 | H3: 0 | I3: =0.025*H3*B3 -> 0 | J3: 0 | K3: 0 | L3: =MIN(K3,(0.025*K3*B3)) -> 0 | M3: 0 | N3: =IF(A3<55,0,0.011)+IF(AND(A3>=55,A3<65),0.0014*(A3-55),0)+IF(A3>64,(0.025-0.011),0) -> 0 | O3: =($A$56+$A$57)*MIN(D3,E3) -> 15000 | P3: 0 | S3: =($A$57+0.03*(1-$Q$53))*IF(D3>F3,(MIN(D3,E3))-F3,0) -> 0 | T3: 0 | U3: 0 | V3: =0.05*MIN(D3,E3)*$Q$53 -> 5000 | W3: 0 | X3: 0 | Y3: =M3+U3+X3 -> 0 | AA3: =Y3/MAX(D3,$A$58) -> 0 | AB3: =Q3/(MAX(D3,$A$58)) -> 0 | AC3: =AP3/(MAX(D3,$A$58)) -> 0 | AE3: =K3*(B3 > $H$53) -> 0 | AF3: =MIN(AE3,(0.025*AE3*MAX(0,(B3-$H$53)))) -> 0 | AG3: =MIN(AE3,(AE3*MAX($F$53,N3)*MAX(0,(B3-($H$53))))) -> 0 | AH3: 0 | AJ3: =($A$57+0.03*(1-$Q$53))*IF(D3>F3,(MIN(D3,E3))-F3,0)*(B3 >= $H$53) -> 0 | AK3: 0 | AL3: 0 | AM3: =0.05*MIN(D3,E3)*(B3>$H$53-1)*$Q$53 -> 0 | AN3: 0 | AO3: 0 | AP3: =AG3+AI3+AL3+AO3 -> 0 | BA3: 2.7 | BB3: 2.5
A4: =A3+1 -> 34 | B4: =B3+1 -> 1 | C4: =BA4*$Q$53+BB4*(1-$Q$53) -> 2.7 | D4: =D3*(1+0.005+(C3/100)+$D$53) -> 105700 | E4: =E3*(1+$D$53) -> 353625 | F4: =F3*(1+$D$53) -> 154924.65 | G4: =MIN(D4,F4) -> 105700 | H4: 0 | I4: =0.025*H4*B4 -> 0 | J4: 0 | K4: 0 | L4: =MIN(K4,(0.025*K4*B4)) -> 0 | M4: 0 | N4: =IF(A4<55,0,0.011)+IF(AND(A4>=55,A4<65),0.0014*(A4-55),0)+IF(A4>64,(0.025-0.011),0) -> 0 | O4: =($A$56+$A$57)*MIN(D4,E4) -> 15855 | P4: =(1+$C$53)*P3+O3*($C$60/12) -> 15458.58984 | Q4: =(P4*((1+$C$53)^(MAX(0,($E$53-A4))))*($C$53-$G$53)/(1-((1+$G$53)/(1+$C$53))^(MAX(0,($I$53-MAX($E$53,A4)))))) -> 6981.861017 | S4: =($A$57+0.03*(1-$Q$53))*IF(D4>F4,(MIN(D4,E4))-F4,0) -> 0 | T4: =(1+$C$53)*T3+S3*($C$60/12) -> 0 | U4: =(T4*(1+$C$53)^(MAX(0,($E$53-A4)))*($C$53-$G$53)/(1-((1+$G$53)/(1+$C$53))^($I$53-MAX($E$53,A4)))) -> 0 | V4: =0.05*MIN(D4,E4)*$Q$53 -> 5285 | W4: =W3*(1+$C$53)+V3*$C$60/12 -> 5152.863278 | X4: =(W4*(1+$C$53)^(MAX(0,($E$53-A4)))*($C$53-$G$53)/(1-((1+$G$53)/(1+$C$53))^($I$53-MAX($E$53,A4)))) -> 2327.287006 | Y4: =M4+U4+X4 -> 2327.287006 | AA4: =Y4/MAX(D4,$A$58) -> 0.004673893761 | AB4: =Q4/(MAX(D4,$A$58)) -> 0.01402168128 | AC4: =AP4/(MAX(D4,$A$58)) -> 0.01402168128 | AE4: =K4*(B4 > $H$53) -> 0 | AF4: =MIN(AE4,(0.025*AE4*MAX(0,(B4-$H$53)))) -> 0 | AG4: =MIN(AE4,(AE4*MAX($F$53,N4)*MAX(0,(B4-($H$53))))) -> 0 | AH4: =(1+$C$53)*AH3+O3*($C$60/12)*($H$53 >= B4) -> 15458.58984 | AI4: =(AH4*((1+$C$53)^(MAX(0,($E$53-A4))))*($C$53-$G$53)/(1-((1+$G$53)/(1+$C$53))^($I$53-MAX($E$53,A4)))) -> 6981.861017 | AJ4: =($A$57+0.03*(1-$Q$53))*IF(D4>F4,(MIN(D4,E4))-F4,0)*(B4 >= $H$53) -> 0 | AK4: =(1+$C$53)*AK3+AJ3*($C$60/12) -> 0 | AL4: =(AK4*((1+$C$53)^(MAX(0,($E$53-A4))))*($C$53-$G$53)/(1-((1+$G$53)/(1+$C$53))^($I$53-MAX($E$53,A4)))) -> 0 | AM4: =0.05*MIN(D4,E4)*(B4>$H$53-1)*$Q$53 -> 0 | AN4: =(1+$C$53)*AN3+($C$60/12)*AM3 -> 0 | AO4: =(AN4*((1+$C$53)^(MAX(0,($E$53-A4))))*($C$53-$G$53)/(1-((1+$G$53)/(1+$C$53))^($I$53-MAX($E$53,A4)))) -> 0 | AP4: 6981.861017 | BA4: 2.7 | BB4: 2.3
A5: =A4+1 -> 35 | B5: 2 | C5: 2.65 | D5: =D4*(1+0.005+(C4/100)+$D$53) -> 111724.9 | E5: =E4*(1+$D$53) -> 362465.625 | F5: 158797.7662 | G5: 111724.9 | H5: 0 | I5: 0 | J5: 0 | K5: 0 | L5: 0 | M5: 0 | N5: 0 | O5: 16758.735 | P5: 32841.7741 | Q5: =(P5*((1+$C$53)^(MAX(0,($E$53-A5))))*($C$53-$G$53)/(1-((1+$G$53)/(1+$C$53))^(MAX(0,($I$53-MAX($E$53,A5)))))) -> 13895.04799 | S5: 0 | T5: 0 | U5: =(T5*(1+$C$53)^(MAX(0,($E$53-A5)))*($C$53-$G$53)/(1-((1+$G$53)/(1+$C$53))^($I$53-MAX($E$53,A5)))) -> 0 | V5: 5586.245 | W5: 10947.25803 | X5: =(W5*(1+$C$53)^(MAX(0,($E$53-A5)))*($C$53-$G$53)/(1-((1+$G$53)/(1+$C$53))^($I$53-MAX($E$53,A5)))) -> 4631.682664 | Y5: 4631.682664 | AA5: 0.009301814796 | AB5: 0.02790544439 | AC5: 0.02790544439 | AE5: 0 | AF5: 0 | AG5: 0 | AH5: =(1+$C$53)*AH4+O4*($C$60/12)*($H$53 >= B5) -> 32841.7741 | AI5: =(AH5*((1+$C$53)^(MAX(0,($E$53-A5))))*($C$53-$G$53)/(1-((1+$G$53)/(1+$C$53))^($I$53-MAX($E$53,A5)))) -> 13895.04799 | AJ5: 0 | AK5: 0 | AL5: =(AK5*((1+$C$53)^(MAX(0,($E$53-A5))))*($C$53-$G$53)/(1-((1+$G$53)/(1+$C$53))^($I$53-MAX($E$53,A5)))) -> 0 | AM5: 0 | AN5: 0 | AO5: =(AN5*((1+$C$53)^(MAX(0,($E$53-A5))))*($C$53-$G$53)/(1-((1+$G$53)/(1+$C$53))^($I$53-MAX($E$53,A5)))) -> 0 | AP5: 13895.04799 | BA5: 2.65 | BB5: 2.1
A6: 36 | B6: 3 | C6: 2.65 | D6: 118037.3568 | E6: 371527.2656 | F6: 162767.7104 | G6: 118037.3568 | H6: 0 | I6: 0 | J6: 0 | K6: 0 | L6: 0 | M6: 0 | N6: 0 | O6: 17705.60353 | P6: 52329.68789 | Q6: 20740.2364 | S6: 0 | T6: 0 | U6: 0 | V6: 5901.867842 | W6: 17443.2293 | X6: 6913.412135 | Y6: 6913.412135 | AA6: 0.0138842153 | AB6: 0.04165264589 | AC6: 0.04165264589 | AE6: 0 | AF6: 0 | AG6: 0 | AH6: 52329.68789 | AI6: 20740.2364 | AJ6: 0 | AK6: 0 | AL6: 0 | AM6: 0 | AN6: 0 | AO6: 0 | AP6: 20740.2364 | BA6: 2.65 | BB6: 1.9
A7: 37 | B7: 4 | C7: 2.65 | D7: 124706.4675 | E7: 380815.4473 | F7: 166836.9032 | G7: 124706.4675 | H7: 0 | I7: 0 | J7: 0 | K7: 0 | L7: 0 | M7: 0 | N7: 0 | O7: 18705.97013 | P7: 74108.85267 | Q7: 27514.88892 | S7: 0 | T7: 0 | U7: 0 | V7: 6235.323376 | W7: 24702.95089 | X7: 9171.62964 | Y7: 9171.62964 | AA7: 0.01841939668 | AB7: 0.05525819005 | AC7: 0.05525819005 | AE7: 0 | AF7: 0 | AG7: 0 | AH7: 74108.85267 | AI7: 27514.88892 | AJ7: 0 | AK7: 0 | AL7: 0 | AM7: 0 | AN7: 0 | AO7: 0 | AP7: 27514.88892 | BA7: 2.65 | BB7: 1.8
A8: 38 | B8: 5 | C8: 2.65 | D8: 131752.3829 | E8: 390335.8334 | F8: 171007.8257 | G8: 131752.3829 | H8: =MIN(E8,((1/3)*(D5+D6+D7))) -> 118156.2415 | I8: =MIN(H8,(0.025*H8*B8)) -> 14769.53018 | J8: =MIN(H8,B8*H8*MAX($F$53,N8)) -> 14769.53018 | K8: =(1/3)*(G5+G6+G7) -> 118156.2415 | L8: 14769.53018 | M8: =MIN(K8,B8*K8*MAX($F$53,N8)) -> 14769.53018 | N8: 0 | O8: 19762.85744 | P8: 98389.06154 | Q8: 34219.73237 | S8: 0 | T8: 0 | U8: 0 | V8: 6587.619146 | W8: 32796.35385 | X8: 11406.57746 | Y8: 26176.10764 | AA8: 0.05256951372 | AB8: 0.06872353656 | AC8: 0.06872353656 | AE8: 0 | AF8: 0 | AG8: 0 | AH8: 98389.06154 | AI8: 34219.73237 | AJ8: 0 | AK8: 0 | AL8: 0 | AM8: 0 | AN8: 0 | AO8: 0 | AP8: 34219.73237 | BA8: 2.65 | BB8: 1.65
A9: 39 | B9: 6 | C9: 2.6 | D9: 139196.3926 | E9: 400094.2293 | F9: 175283.0214 | G9: 139196.3926 | H9: =MIN(E9,((1/3)*(D6+D7+D8))) -> 124832.0691 | I9: =MIN(H9,(0.025*H9*B9)) -> 18724.81036 | J9: =MIN(H9,B9*H9*MAX($F$53,N9)) -> 18724.81036 | K9: 124832.0691 | L9: 18724.81036 | M9: =MIN(K9,B9*K9*MAX($F$53,N9)) -> 18724.81036 | N9: 0 | O9: 20879.45888 | P9: 125397.3837 | Q9: 40855.48609 | S9: 0 | T9: 0 | U9: 0 | V9: 6959.819628 | W9: 41799.12789 | X9: 13618.49536 | Y9: 32343.30573 | AA9: 0.06495510631 | AB9: 0.08205013009 | AC9: 0.08205013009 | AE9: 0 | AF9: 0 | AG9: 0 | AH9: 125397.3837 | AI9: 40855.48609 | AJ9: 0 | AK9: 0 | AL9: 0 | AM9: 6959.819628 | AN9: 0 | AO9: 0 | AP9: 40855.48609 | BA9: 2.6 | BB9: 1.5
A10: 40 | B10: 7 | C10: 2.6 | D10: 146991.3905 | E10: 410096.585 | F10: 179665.0969 | G10: 146991.3905 | H10: 131885.081 | I10: 23079.88918 | J10: 23079.88918 | K10: 131885.081 | L10: 23079.88918 | M10: 23079.88918 | N10: 0 | O10: 22048.70858 | P10: 155379.5065 | Q10: 47422.86203 | S10: 0 | T10: 0 | U10: 0 | V10: 7349.569527 | W10: 51793.16882 | X10: 15807.62068 | Y10: 38887.50985 | AA10: 0.07809784064 | AB10: 0.0952394004 | AC10: 0.09306817836 | AE10: =K10*(B10 >$H$53) -> 131885.081 | AF10: 3297.127025 | AG10: 3297.127025 | AH10: 133861.7071 | AI10: 40855.48609 | AJ10: 0 | AK10: 0 | AL10: 0 | AM10: 7349.569527 | AN10: 7172.599797 | AO10: 2189.125312 | AP10: 46341.73843 | BA10: 2.6 | BB10: 1.4
A11: 41 | B11: 8 | C11: 2.55 | D11: 155222.9084 | E11: 420348.9996 | F11: 184156.7243 | G11: 155222.9084 | H11: 139313.3887 | I11: 27862.67774 | J11: 27862.67774 | K11: 139313.3887 | L11: 27862.67774 | M11: 27862.67774 | N11: 0 | O11: 23283.43626 | P11: 188590.4193 | Q11: 53919.48872 | S11: 0 | T11: 0 | U11: 0 | V11: 7761.145421 | W11: 62863.4731 | X11: 17973.16291 | Y11: 45835.84064 | AA11: 0.09205218312 | AB11: 0.1082865849 | AC11: 0.1047847787 | AE11: 139313.3887 | AF11: 6965.669434 | AG11: 6965.669434 | AH11: 142897.3723 | AI11: 40855.48609 | AJ11: 0 | AK11: 0 | AL11: 0 | AM11: 7761.145421 | AN11: 15231.01567 | AO11: 4354.667541 | AP11: 52175.82307 | BA11: 2.55 | BB11: 1.3
A12: 42 | B12: 9 | C12: 2.5 | D12: 163837.7798 | E12: 430857.7246 | F12: 188760.6425 | G12: 163837.7798 | H12: 147136.8972 | I12: 33105.80186 | J12: 33105.80186 | K12: 147136.8972 | L12: 33105.80186 | M12: 33105.80186 | N12: 0 | O12: 24575.66697 | P12: 225315.5453 | Q12: 60346.12833 | S12: 0 | T12: 0 | U12: 0 | V12: 8191.888992 | W12: 75105.18178 | X12: 20115.37611 | Y12: 53221.17797 | AA12: 0.1068841664 | AB12: 0.1211932142 | AC12: 0.1172599676 | AE12: 147136.8972 | AF12: 11035.26729 | AG12: 11035.26729 | AH12: 152542.9449 | AI12: 40855.48609 | AJ12: 0 | AK12: 0 | AL12: 0 | AM12: 8191.888992 | AN12: 24257.53347 | AO12: 6496.880744 | AP12: 58387.63413 | BA12: 2.5 | BB12: 1.2
A13: 43 | B13: 10 | C13: 2.4 | D13: 172848.8577 | E13: 441629.1677 | F13: 193479.6585 | G13: 172848.8577 | H13: 155350.6929 | I13: 38837.67323 | J13: 38837.67323 | K13: 155350.6929 | L13: 38837.67323 | M13: 38837.67323 | N13: 0 | O13: 25927.32866 | P13: 265851.355 | Q13: 66700.52468 | S13: 0 | T13: 0 | U13: 0 | V13: 8642.442886 | W13: 88617.11834 | X13: 22233.50823 | Y13: 61071.18146 | AA13: 0.1226493395 | AB13: 0.1339547574 | AC13: 0.130550774 | AE13: 155350.6929 | AF13: 15535.06929 | AG13: 15535.06929 | AH13: 162839.5937 | AI13: 40855.48609 | AJ13: 0 | AK13: 0 | AL13: 0 | AM13: 8642.442886 | AN13: 34337.25378 | AO13: 8615.012862 | AP13: 65005.56825 | BA13: 2.4 | BB13: 1.1
A14: 44 | B14: 11 | C14: 2.4 | D14: 182182.696 | E14: 452669.8969 | F14: 198316.65 | G14: 182182.696 | H14: 163969.8487 | I14: 45091.70838 | J14: 45091.70838 | K14: 163969.8487 | L14: 45091.70838 | M14: 45091.70838 | N14: 0 | O14: 27327.40441 | P14: 310516.3174 | Q14: 72980.51358 | S14: 0 | T14: 0 | U14: 0 | V14: 9109.134802 | W14: 103505.4391 | X14: 24326.83786 | Y14: 69418.54624 | AA14: 0.1394133639 | AB14: 0.1465668679 | AC14: 0.144718319 | AE14: 163969.8487 | AF14: 20496.23108 | AG14: 20496.23108 | AH14: 173831.2663 | AI14: 40855.48609 | AJ14: 0 | AK14: 0 | AL14: 0 | AM14: 9109.134802 | AN14: 45561.68372 | AO14: 10708.3425 | AP14: 72060.05967 | BA14: 2.4 | BB14: 1
A15: 45 | B15: 12 | C15: 2.3 | D15: 192020.5616 | E15: 463986.6444 | F15: 203274.5662 | G15: 192020.5616 | H15: 172956.4445 | I15: 51886.93336 | J15: 51886.93336 | K15: 172956.4445 | L15: 51886.93336 | M15: 51886.93336 | N15: 0 | O15: 28803.08424 | P15: 359639.0446 | Q15: 79181.08342 | S15: 0 | T15: 0 | U15: 0 | V15: 9601.028081 | W15: 119879.6815 | X15: 26393.69447 | Y15: 78280.62783 | AA15: 0.1572110948 | AB15: 0.159019481 | AC15: 0.159808881 | AE15: 172956.4445 | AF15: 25943.46668 | AG15: 25943.46668 | AH15: 185564.8767 | AI15: 40855.48609 | AJ15: 0 | AK15: 0 | AL15: 0 | AM15: 9601.028081 | AN15: 58024.72262 | AO15: 12775.19911 | AP15: 79574.15188 | BA15: 2.3 | BB15: 0.9
A16: 46 | B16: 13 | C16: 2.2 | D16: 202197.6514 | E16: 475586.3105 | F16: 208356.4304 | G16: 202197.6514 | H16: 182350.7051 | I16: 59263.97917 | J16: 59263.97917 | K16: 182350.7051 | L16: 59263.97917 | M16: 59263.97917 | N16: 0 | O16: 30329.64771 | P16: 413598.3511 | Q16: 85303.23856 | S16: 0 | T16: 0 | U16: 0 | V16: 10109.88257 | W16: 137866.117 | X16: 28434.41285 | Y16: 87698.39202 | AA16: 0.1761248038 | AB16: 0.1713146138 | AC16: 0.175892614 | AE16: 182350.7051 | AF16: 31911.3734 | AG16: 31911.3734 | AH16: 198090.5059 | AI16: 40855.48609 | AJ16: 0 | AK16: 0 | AL16: 0 | AM16: 10109.88257 | AN16: 71835.9484 | AO16: 14815.91749 | AP16: 87582.77698 | BA16: 2.2 | BB16: 0.85
A17: 47 | B17: 14 | C17: 2.1 | D17: 212711.9293 | E17: 487475.9682 | F17: 213565.3411 | G17: 212711.9293 | H17: 192133.6364 | I17: 67246.77272 | J17: 67246.77272 | K17: 192133.6364 | L17: 67246.77272 | M17: 67246.77272 | N17: 0 | O17: 31906.78939 | P17: 472773.1454 | Q17: 91342.23562 | S17: 0 | T17: 0 | U17: 0 | V17: 10635.59646 | W17: 157591.0485 | X17: 30447.41187 | Y17: 97694.1846 | AA17: 0.1961993681 | AB17: 0.18344274 | AC17: 0.1930201171 | AE17: 192133.6364 | AF17: 38426.72727 | AG17: 38426.72727 | AH17: 211461.6151 | AI17: 40855.48609 | AJ17: 0 | AK17: 0 | AL17: 0 | AM17: 10635.59646 | AN17: 87103.84345 | AO17: 16828.91651 | AP17: 96111.12987 | BA17: 2.1 | BB17: 0.8
A18: 48 | B18: 15 | C18: 2 | D18: 223560.2377 | E18: 499662.8674 | F18: 218904.4747 | G18: 218904.4747 | H18: 202310.0474 | I18: 75866.26779 | J18: 75866.26779 | K18: 202310.0474 | L18: 75866.26779 | M18: 75866.26779 | N18: 0 | O18: 33534.03565 | P18: 537567.5974 | Q18: 97293.547 | S18: 325.9034089 | T18: 0 | U18: 0 | V18: 11178.01188 | W18: 179189.1991 | X18: 32431.18233 | Y18: 108297.4501 | AA18: 0.2174939211 | AB18: 0.1953947671 | AC18: 0.211249075 | AE18: 202310.0474 | AF18: 45519.76067 | AG18: 45519.76067 | AH18: 225735.2741 | AI18: 40855.48609 | AJ18: 325.9034089 | AK18: 0 | AL18: 0 | AM18: 11178.01188 | AN18: 103944.1078 | AO18: 18812.68697 | AP18: 105187.9337 | BA18: 2 | BB18: 0.75
A19: 49 | B19: 16 | C19: 2 | D19: 234738.2495 | E19: 512154.4391 | F19: 224377.0865 | G19: 224377.0865 | H19: 212823.2728 | I19: 85129.30911 | J19: 85129.30911 | K19: 211271.3518 | L19: 84508.54071 | M19: 84508.54071 | N19: 0 | O19: 35210.73743 | P19: 608412.6704 | Q19: 103152.8709 | S19: 725.2814101 | T19: 335.8671416 | U19: 56.94434319 | V19: 11736.91248 | W19: 202804.2235 | X19: 34384.2903 | Y19: 118949.7754 | AA19: 0.2388870009 | AB19: 0.2071620555 | AC19: 0.2299426047 | AE19: 211271.3518 | AF19: 52817.83794 | AG19: 52817.83794 | AH19: 240972.4051 | AI19: 40855.48609 | AJ19: 725.2814101 | AK19: 335.8671416 | AL19: 56.94434319 | AM19: 11736.91248 | AN19: 122480.0884 | AO19: 20765.79494 | AP19: 114496.0633 | BA19: 2 | BB19: 0.7
A20: 50 | B20: 17 | C20: 2 | D20: 246475.162 | E20: 524958.3001 | F20: 229986.5137 | G20: 229986.5137 | H20: 223670.1388 | I20: 95059.809 | J20: 95059.809 | K20: 218664.4968 | L20: 92932.41115 | M20: 92932.41115 | N20: 0 | O20: 36971.2743 | P20: 685767.7488 | Q20: 108916.1403 | S20: 1154.205382 | T20: 1105.993363 | U20: 175.6579082 | V20: 12323.7581 | W20: 228589.2496 | X20: 36305.38011 | Y20: 129413.4492 | AA20: 0.2599012117 | AB20: 0.2187364375 | AC20: 0.248729666 | AE20: 218664.4968 | AF20: 60132.73663 | AG20: 60132.73663 | AH20: 257238.0424 | AI20: 40855.48609 | AJ20: 1154.205382 | AK20: 1105.993363 | AL20: 175.6579082 | AM20: 12323.7581 | AN20: 142843.2355 | AO20: 22686.88474 | AP20: 123850.7654 | BA20: 2 | BB20: 0.65
A21: =A20+1 -> 51 | B21: 18 | C21: 2 | D21: 258798.9201 | E21: =E20*(1+$D$53) -> 538082.2576 | F21: 235736.1765 | G21: 235736.1765 | H21: 234924.5497 | I21: 105716.0474 | J21: 105716.0474 | K21: 224422.6916 | L21: 100990.2112 | M21: 100990.2112 | N21: 0 | O21: 38819.83802 | P21: 770158.6562 | Q21: 114584.9299 | S21: 1614.39205 | T21: 2370.14042 | U21: 352.631723 | V21: 12939.94601 | W21: 256719.5521 | X21: 38194.97664 | Y21: 139537.8196 | AA21: 0.280233999 | AB21: 0.2301210756 | AC21: 0.2673278247 | AE21: 224422.6916 | AF21: 67326.80749 | AG21: 67326.80749 | AH21: 274601.6103 | AI21: 40855.48609 | AJ21: 1614.39205 | AK21: 2370.14042 | AL21: 352.631723 | AM21: 12939.94601 | AN21: 165185.682 | AO21: 24576.48127 | AP21: 133111.4066 | BA21: 2 | BB21: 0.6
A22: 52 | B22: 19 | C22: 2 | D22: 271738.8661 | E22: 551534.314 | F22: 241629.581 | G22: 241629.581 | H22: 246670.7772 | I22: 117168.6192 | J22: 117168.6192 | K22: 230033.2589 | L22: 109265.798 | M22: 109265.798 | N22: 0 | O22: 40760.82992 | P22: 862151.0291 | Q22: 120160.7885 | S22: 2107.649962 | T22: 4193.873201 | U22: 584.5137264 | V22: 13586.94331 | W22: 287383.6764 | X22: 40053.59617 | Y22: 149903.9079 | AA22: 0.3010522287 | AB22: 0.2413190803 | AC22: 0.2864558979 | AE22: 230033.2589 | AF22: 74760.80915 | AG22: 74760.80915 | AH22: 293137.219 | AI22: 40855.48609 | AJ22: 2107.649962 | AK22: 4193.873201 | AL22: 584.5137264 | AM22: 13586.94331 | AN22: 189671.27 | AO22: 26435.10081 | AP22: 142635.9098 | BA22: 2 | BB22: 0.55
A23: 53 | B23: 20 | C23: 2 | D23: 285325.8094 | E23: 565322.6719 | F23: 247670.3205 | G23: 247670.3205 | H23: 259004.3161 | I23: 129502.158 | J23: 129502.158 | K23: 235784.0904 | L23: 117892.0452 | M23: 117892.0452 | N23: 0 | O23: 42798.87141 | P23: 962353.2203 | Q23: 125645.2396 | S23: 2635.884226 | T23: 6649.04606 | U23: 868.1022392 | V23: 14266.29047 | W23: 320784.4068 | X23: 41881.74654 | Y23: 160641.894 | AA23: 0.3226173412 | AB23: 0.2523335111 | AC23: 0.3062886 | AE23: 235784.0904 | AF23: 82524.43164 | AG23: 82524.43164 | AH23: 312923.9813 | AI23: 40855.48609 | AJ23: 2635.884226 | AK23: 6649.04606 | AL23: 868.1022392 | AM23: 14266.29047 | AN23: 216476.413 | AO23: 28263.25117 | AP23: 152511.2711 | BA23: 2 | BB23: 0.5
A24: 54 | B24: 21 | C24: 2 | D24: 299592.0999 | E24: 579455.7387 | F24: 253862.0785 | G24: 253862.0785 | H24: 271954.5319 | I24: 142776.1292 | J24: 142776.1292 | K24: 241678.6927 | L24: 126881.3136 | M24: 126881.3136 | N24: 0 | O24: 44938.81499 | P24: 1071419.409 | Q24: 131039.7817 | S24: 3201.101498 | T24: 9814.326876 | U24: 1200.339699 | V24: 14979.605 | W24: 357139.8031 | X24: 43679.92722 | Y24: 171761.5806 | AA24: 0.3449490234 | AB24: 0.2631673775 | AC24: 0.3268445615 | AE24: 241678.6927 | AF24: 90629.50975 | AG24: 90629.50975 | AH24: 334046.35 | AI24: 40855.48609 | AJ24: 3201.101498 | AK24: 9814.326876 | AL24: 1200.339699 | AM24: 14979.605 | AN24: 245791.0197 | AO24: 30061.43186 | AP24: 162746.7674 | BA24: 2 | BB24: =BB23 -> 0.5
A25: 55 | B25: 22 | C25: 2 | D25: 314571.7049 | E25: 593942.1322 | F25: 260208.6305 | G25: 260208.6305 | H25: 285552.2585 | I25: 157053.7422 | J25: 157053.7422 | K25: 247720.66 | L25: 136246.363 | M25: 136246.363 | N25: 0.011 | O25: 47185.75573 | P25: 1190052.933 | Q25: 136345.8886 | S25: 3805.415211 | T25: 13775.76161 | U25: 1578.30665 | V25: 15728.58524 | W25: 396684.3111 | X25: 45448.62954 | Y25: 183273.2992 | AA25: 0.3680680241 | AB25: 0.2738236395 | AC25: 0.3481434484 | AE25: 247720.66 | AF25: 99088.26399 | AG25: 99088.26399 | AH25: 356594.4787 | AI25: 40855.48609 | AJ25: 3805.415211 | AK25: 13775.76161 | AL25: 1578.30665 | AM25: 15728.58524 | AN25: 277819.4849 | AO25: 31830.13417 | AP25: 173352.1909 | BA25: 2 | BB25: 0.5
A26: 56 | B26: 23 | C26: 2 | D26: 330300.2901 | E26: 608790.6855 | F26: 266713.8462 | G26: 266713.8462 | H26: 299829.8714 | I26: 172402.1761 | J26: 172402.1761 | K26: 253913.6765 | L26: 146000.364 | M26: 146000.364 | N26: 0.0124 | O26: 49545.04352 | P26: 1319009.856 | Q26: 141565.0102 | S26: 4451.051075 | T26: 18627.38238 | U26: 1999.215976 | V26: 16515.01451 | W26: 439669.952 | X26: 47188.33673 | Y26: 195187.9167 | AA26: 0.3919961671 | AB26: 0.2843052087 | AC26: 0.3702059749 | AE26: 253913.6765 | AF26: 107913.3125 | AG26: 107913.3125 | AH26: 380664.606 | AI26: 40855.48609 | AJ26: 4451.051075 | AK26: 18627.38238 | AL26: 1999.215976 | AM26: 16515.01451 | AN26: 312781.75 | AO26: 33569.84137 | AP26: 184337.8559 | BA26: 2 | BB26: 0.5
A27: 57 | B27: 24 | C27: 2 | D27: 346815.3046 | E27: 624010.4526 | F27: 273381.6924 | G27: 273381.6924 | H27: 314821.365 | I27: 188892.819 | J27: 188892.819 | K27: 260261.5184 | L27: 156156.911 | M27: 156156.911 | N27: 0.0138 | O27: 52022.2957 | P27: 1459102.788 | Q27: 146698.5724 | S27: 5140.352859 | T27: 24471.86222 | U27: 2460.407369 | V27: 17340.76523 | W27: 486367.5961 | X27: 48899.52414 | Y27: 207516.8425 | AA27: 0.4167563662 | AB27: 0.2946149489 | AC27: 0.393053917 | AE27: 260261.5184 | AF27: 117117.6833 | AG27: 117117.6833 | AH27: 406359.4669 | AI27: 40855.48609 | AJ27: 5140.352859 | AK27: 24471.86222 | AL27: 2460.407369 | AM27: 17340.76523 | AN27: 350914.4404 | AO27: 35281.02877 | AP27: 195714.6055 | BA27: 2 | BB27: 0.5
A28: 58 | B28: 25 | C28: 1.9 | D28: 364156.0699 | E28: 639610.7139 | F28: 280216.2347 | G28: 280216.2347 | H28: 330562.4332 | I28: 206601.5208 | J28: 206601.5208 | K28: 266768.0564 | L28: 166730.0352 | M28: 166730.0352 | N28: 0.0152 | O28: 54623.41048 | P28: 1611204.982 | Q28: 151747.9779 | S28: 5875.788464 | T28: 31421.22002 | U28: 2959.342016 | V28: 18207.80349 | W28: 537068.3273 | X28: 50582.65929 | Y28: 220272.0365 | AA28: 0.4423726402 | AB28: 0.304755677 | AC28: 0.4167101276 | AE28: 266768.0564 | AF28: 126714.8268 | AG28: 126714.8268 | AH28: 433788.7309 | AI28: 40855.48609 | AJ28: 5875.788464 | AK28: 31421.22002 | AL28: 2959.342016 | AM28: 18207.80349 | AN28: 392472.0837 | AO28: 36964.16392 | AP28: 207493.8188 | BA28: 1.9 | BB28: 0.5
A29: 59 | B29: 26 | C29: 1.8 | D29: 381999.7173 | E29: 655600.9818 | F29: 287221.6406 | G29: 287221.6406 | H29: 347090.5549 | I29: 225608.8607 | J29: 225608.8607 | K29: 273437.2578 | L29: 177734.2175 | M29: 177734.2175 | N29: 0.0166 | O29: 57299.9576 | P29: 1776254.711 | Q29: 156714.6062 | S29: 6634.465373 | T29: 39597.57929 | U29: 3493.597514 | V29: 19099.98587 | W29: 592084.9038 | X29: 52238.20206 | Y29: 233466.0171 | AA29: 0.46887013 | AB29: 0.3147301636 | AC29: 0.4411985524 | AE29: 273437.2578 | AF29: 136718.6289 | AG29: 136718.6289 | AH29: 463069.4702 | AI29: 40855.48609 | AJ29: 6634.465373 | AK29: 39597.57929 | AL29: 3493.597514 | AM29: 19099.98587 | AN29: 437728.4137 | AO29: 38619.70669 | AP29: 219687.4192 | BA29: 1.8 | BB29: 0.5
A30: 60 | B30: 27 | C30: 1.7 | D30: 400335.7037 | E30: 671991.0063 | F30: 294402.1816 | G30: 294402.1816 | H30: 364323.6973 | I30: 245918.4957 | J30: 245918.4957 | K30: 280273.1892 | L30: 189184.4027 | M30: 189184.4027 | N30: 0.018 | O30: 60050.35556 | P30: 1955203.674 | Q30: 161595.1618 | S30: 7415.346552 | T30: 49107.71449 | U30: 4058.691774 | V30: 20016.78519 | W30: 651734.5579 | X30: 53865.05393 | Y30: 247108.1484 | AA30: 0.4962676414 | AB30: 0.3245317903 | AC30: 0.4665367722 | AE30: 280273.1892 | AF30: 147143.4243 | AG30: 147143.4243 | AH30: 494326.6594 | AI30: 40855.48609 | AJ30: 7415.346552 | AK30: 49107.71449 | AL30: 4058.691774 | AM30: 20016.78519 | AN30: 486959.0048 | AO30: 40246.55856 | AP30: 232304.1608 | BA30: 1.7 | BB30: 0.5
A31: 61 | B31: 28 | C31: 1.6 | D31: 419151.4818 | E31: 688790.7815 | F31: 301762.2361 | G31: 301762.2361 | H31: 382163.8303 | I31: 267514.6812 | J31: 267514.6812 | K31: 287280.0189 | L31: 201096.0133 | M31: 201096.0133 | N31: 0.0194 | O31: 62872.72227 | P31: 2149066.176 | Q31: 166386.5644 | S31: 8217.2472 | T31: 60064.5386 | U31: 4650.360389 | V31: 20957.57409 | W31: 716355.3921 | X31: 55462.18812 | Y31: 261208.5618 | AA31: 0.5245855213 | AB31: 0.3341543708 | AC31: 0.4927438783 | AE31: 287280.0189 | AF31: 158004.0104 | AG31: 158004.0104 | AH31: 527693.709 | AI31: 40855.48609 | AJ31: 8217.2472 | AK31: 60064.5386 | AL31: 4650.360389 | AM31: 20957.57409 | AN31: 540457.4891 | AO31: 41843.69276 | AP31: 245353.5497 | BA31: 1.6 | BB31: 0.5
A32: 62 | B32: 29 | C32: 1.5 | D32: 438432.45 | E32: 706010.551 | F32: 309306.292 | G32: 309306.292 | H32: 400495.6343 | I32: 290359.3349 | J32: 290359.3349 | K32: 294462.0194 | L32: 213484.9641 | M32: 213484.9641 | N32: 0.0208 | O32: 65764.8675 | P32: 2358923.051 | Q32: 171085.9541 | S32: 9038.831058 | T32: 72587.36523 | U32: 5264.55436 | V32: 21921.6225 | W32: 786307.6838 | X32: 57028.65136 | Y32: 275778.1698 | AA32: 0.5538456856 | AB32: 0.3435921618 | AC32: 0.5198404993 | AE32: 294462.0194 | AF32: 169315.6612 | AG32: 169315.6612 | AH32: 563313.0343 | AI32: 40855.48609 | AJ32: 9038.831058 | AK32: 72587.36523 | AL32: 5264.55436 | AM32: 21921.6225 | AN32: 598536.6724 | AO32: 43410.156 | AP32: 258845.8576 | BA32: 1.5 | BB32: 0.5
A33: 63 | B33: 30 | C33: 1.25 | D33: 458161.9102 | E33: 723660.8148 | F33: 317038.9493 | G33: 317038.9493 | H33: 419306.5452 | I33: 314479.9089 | J33: 314479.9089 | K33: 301823.5699 | L33: 226367.6774 | M33: 226367.6774 | N33: 0.0222 | O33: 68724.28653 | P33: 2585925.832 | Q33: 175690.6957 | S33: 9878.607264 | T33: 86802.18451 | U33: 5897.437581 | V33: 22908.09551 | W33: 861975.2772 | X33: 58563.56522 | Y33: 290828.6802 | AA33: 0.5840716468 | AB33: 0.3528398708 | AC33: 0.5478488287 | AE33: 301823.5699 | AF33: 181094.1419 | AG33: 181094.1419 | AH33: 601336.6641 | AI33: 40855.48609 | AJ33: 9878.607264 | AK33: 86802.18451 | AL33: 5897.437581 | AM33: 22908.09551 | AN33: 661529.7225 | AO33: 44945.06986 | AP33: 272792.1355 | BA33: 1.25 | BB33: 0.5
A34: 64 | B34: 31 | C34: 1.25 | D34: 477633.7914 | E34: 741752.3352 | F34: 324964.923 | G34: 324964.923 | H34: 438581.9473 | I34: 339901.0092 | J34: 339901.0092 | K34: 309369.1591 | L34: 239761.0983 | M34: 239761.0983 | N34: 0.0236 | O34: 71645.06871 | P34: 2831301.196 | Q34: 180198.3818 | S34: 10686.82079 | T34: 102841.9545 | U34: 6545.384083 | V34: 23881.68957 | W34: 943767.0652 | X34: 60066.12727 | Y34: 306372.6097 | AA34: 0.6152885422 | AB34: 0.3618926632 | AC34: 0.5767926514 | AE34: 309369.1591 | AF34: 193355.7245 | AG34: 193355.7245 | AH34: 641926.889 | AI34: 40855.48609 | AJ34: 10686.82079 | AK34: 102841.9545 | AL34: 6545.384083 | AM34: 23881.68957 | AN34: 729791.4356 | AO34: 46447.6319 | AP34: 287204.2265 | BA34: 1.25 | BB34: 0.5
A35: 65 | B35: 32 | C35: 1.25 | D35: 497933.2275 | E35: 760296.1435 | F35: 333089.0461 | G35: 333089.0461 | H35: 458076.0505 | I35: 366460.8404 | J35: 366460.8404 | K35: 317103.3881 | L35: 253682.7105 | M35: 253682.7105 | N35: 0.025 | O35: 74689.98413 | P35: 3096249.475 | Q35: 184600.5015 | S35: 11539.0927 | T35: 120797.3317 | U35: 7202.01915 | V35: 24896.66138 | W35: 1032083.158 | X35: 61533.50051 | Y35: 322418.2302 | AA35: 0.6475129843 | AB35: 0.3707334464 | AC35: 0.6066871941 | AE35: 317103.3881 | AF35: 206117.2023 | AG35: 206117.2023 | AH35: 685256.954 | AI35: 40855.48609 | AJ35: 11539.0927 | AK35: 120797.3317 | AL35: 7202.01915 | AM35: 24896.66138 | AN35: 803664.1737 | AO35: 47915.00514 | AP35: 302089.7127 | BA35: 1.25 | BB35: 0.5
A36: 66 | B36: 33 | C36: 1.25 | D36: 519095.3897 | E36: 779303.5471 | F36: 341416.2723 | G36: 341416.2723 | H36: 477909.6431 | I36: 394275.4555 | J36: 394275.4555 | K36: 325030.9728 | L36: 268150.5526 | M36: 268150.5526 | N36: 0.025 | O36: 77864.30846 | P36: 3382219.77 | Q36: 204075.2758 | S36: 12437.53822 | T36: 140843.025 | U36: 8498.140609 | V36: 25954.76949 | W36: 1127406.59 | X36: 68025.09195 | Y36: 344673.7851 | AA36: 0.6639893013 | AB36: 0.3931363674 | AC36: 0.6267524098 | AE36: 325030.9728 | AF36: 219395.9067 | AG36: 219395.9067 | AH36: 731511.7984 | AI36: 44137.72084 | AJ36: 12437.53822 | AK36: 140843.025 | AL36: 8498.140609 | AM36: 25954.76949 | AN36: 883569.3239 | AO36: 53312.51833 | AP36: 325344.2864 | BA36: 1.25 | BB36: 0.5
A37: =A36+1 -> 67 | B37: 34 | C37: 1.25 | D37: 541156.9438 | E37: =E36*(1+$D$53) -> 798786.1358 | F37: 349951.6791 | G37: 349951.6791 | H37: 498220.8029 | I37: 423487.6825 | J37: 423487.6825 | K37: 333156.7471 | L37: 283183.2351 | M37: 283183.2351 | N37: 0.025 | O37: 81173.54157 | P37: 3690764.432 | Q37: 225530.6621 | S37: 13384.36853 | T37: 163167.716 | U37: 9970.650714 | V37: 27057.84719 | W37: 1230254.811 | X37: 75176.88736 | Y37: 368330.7731 | AA37: 0.6806357701 | AB37: 0.4167564783 | AC37: 0.6470747363 | AE37: 333156.7471 | AF37: 233209.723 | AG37: 233209.723 | AH37: 780888.8447 | AI37: 47717.58844 | AJ37: 13384.36853 | AK37: 163167.716 | AL37: 9970.650714 | AM37: 27057.84719 | AN37: 969958.5289 | AO37: 59271.02455 | AP37: 350168.9867 | BA37: 1.25 | BB37: 0.5
A38: 68 | B38: 35 | C38: 1.25 | D38: 564156.1139 | E38: 818755.7892 | F38: 358700.4711 | G38: 358700.4711 | H38: 519395.187 | I38: 454470.7886 | J38: 454470.7886 | K38: 341485.6658 | L38: 298799.9576 | M38: 298799.9576 | N38: 0.025 | O38: 84623.41708 | P38: 4023546.263 | Q38: 249190.0682 | S38: 14381.895 | T38: 187975.101 | U38: 11641.85154 | V38: 28207.80569 | W38: 1341182.088 | X38: 83063.35608 | Y38: 393505.1652 | AA38: 0.6975111242 | AB38: 0.4417040995 | AC38: 0.6677238091 | AE38: 341485.6658 | AF38: 247577.1077 | AG38: 247577.1077 | AH38: 833598.8418 | AI38: 51627.23098 | AJ38: 14381.895 | AK38: 187975.101 | AL38: 11641.85154 | AM38: 28207.80569 | AN38: 1063315.807 | AO38: 65854.27909 | AP38: 376700.4693 | BA38: 1.25 | BB38: 0.5
A39: 69 | B39: 36 | C39: 1.25 | D39: 588132.7487 | E39: 839224.6839 | F39: 367667.9828 | G39: 367667.9828 | H39: 541469.4825 | I39: 487322.5342 | J39: 487322.5342 | K39: 350022.8075 | L39: 315020.5267 | M39: 315020.5267 | N39: 0.025 | O39: 88219.91231 | P39: 4382346.215 | Q39: 275307.1876 | S39: 15432.53361 | T39: 215485.0081 | U39: 13537.17133 | V39: 29406.63744 | W39: 1460782.072 | X39: 91769.06254 | Y39: 420326.7606 | AA39: 0.7146800812 | AB39: 0.4681038222 | AC39: 0.6887765904 | AE39: 350022.8075 | AF39: 262517.1056 | AG39: 262517.1056 | AH39: 889866.7636 | AI39: 55903.09483 | AJ39: 15432.53361 | AK39: 215485.0081 | AL39: 13537.17133 | AM39: 29406.63744 | AN39: 1164159.817 | AO39: 73134.6976 | AP39: 405092.0694 | BA39: 1.25 | BB39: 0.5
A40: 70 | B40: 37 | C40: 1.25 | D40: 613128.3906 | E40: 860205.301 | F40: 376859.6824 | G40: 376859.6824 | H40: 564481.9355 | I40: 522145.7903 | J40: 522145.7903 | K40: 358773.3777 | L40: 331865.3743 | M40: 331865.3743 | N40: 0.025 | O40: 91969.25858 | P40: 4769071.614 | Q40: 304171.089 | S40: 16538.80957 | T40: 245934.5933 | U40: 15685.69296 | V40: 30656.41953 | W40: 1589690.538 | X40: 101390.363 | Y40: 448941.4303 | AA40: 0.7322143897 | AB40: 0.4960968921 | AC40: 0.7103186414 | AE40: 358773.3777 | AF40: 278049.3677 | AG40: 278049.3677 | AH40: 949932.7701 | AI40: 60586.65261 | AJ40: 16538.80957 | AK40: 245934.5933 | AL40: 15685.69296 | AM40: 30656.41953 | AN40: 1273046.281 | AO40: 81194.81213 | AP40: 435516.5254 | BA40: 1.25 | BB40: 0.5
A41: 71 | B41: 38 | C41: 1.25 | D41: 639186.3471 | E41: 881710.4335 | F41: 386281.1745 | G41: 386281.1745 | H41: 588472.4177 | I41: 559048.7968 | J41: 559048.7968 | K41: 367742.7121 | L41: 349355.5765 | M41: 349355.5765 | N41: 0.025 | O41: 95877.95207 | P41: 5185764.951 | Q41: 336112.3602 | S41: 17703.36209 | T41: 279579.6232 | U41: 18120.7918 | V41: 31959.31736 | W41: 1728588.317 | X41: 112037.4534 | Y41: 479513.8217 | AA41: 0.7501940926 | AB41: 0.5258440856 | AC41: 0.732445658 | AE41: 367742.7121 | AF41: 294194.1697 | AG41: 294194.1697 | AH41: 1014053.232 | AI41: 65725.27456 | AJ41: 17703.36209 | AK41: 279579.6232 | AL41: 18120.7918 | AM41: 31959.31736 | AN41: 1390570.573 | AO41: 90129.02855 | AP41: 468169.2646 | BA41: 1.25 | BB41: 0.5
A42: 72 | B42: 39 | C42: 1.25 | D42: 666351.7669 | E42: 903753.1944 | F42: 395938.2038 | G42: 395938.2038 | H42: 613482.4955 | I42: 598145.4331 | J42: 598145.4331 | K42: 376936.2799 | L42: 367512.8729 | M42: 367512.8729 | N42: 0.025 | O42: 99952.76504 | P42: 5634613.281 | Q42: 371510.5692 | S42: 18928.94942 | T42: 316695.8486 | U42: 20880.91038 | V42: 33317.58835 | W42: 1878204.427 | X42: 123836.8564 | Y42: 512230.6397 | AA42: 0.768709059 | AB42: 0.5575292024 | AC42: 0.7552653325 | AE42: 376936.2799 | AF42: 310972.4309 | AG42: 310972.4309 | AH42: 1082501.825 | AI42: 71373.28671 | AJ42: 18928.94942 | AK42: 316695.8486 | AL42: 20880.91038 | AM42: 33317.58835 | AN42: 1517370.485 | AO42: 100045.7608 | AP42: 503272.3888 | BA42: 1.25 | BB42: 0.5
A43: 73 | B43: 40 | C43: 1.25 | D43: 694671.717 | E43: 926347.0242 | F43: 405836.6589 | G43: 405836.6589 | H43: 639555.5015 | I43: 639555.5015 | J43: 639555.5015 | K43: 386359.6869 | L43: 386359.6869 | M43: 386359.6869 | N43: 0.025 | O43: 104200.7575 | P43: 6117958.264 | Q43: 410803.3834 | S43: 20218.45407 | T43: 357580.4761 | U43: 24010.50532 | V43: 34733.58585 | W43: 2039319.421 | X43: 136934.4611 | Y43: 547304.6533 | AA43: 0.7878608557 | AB43: 0.5913633352 | AC43: 0.7788996298 | AE43: 386359.6869 | AF43: 328405.7339 | AG43: 328405.7339 | AH43: 1155570.698 | AI43: 77593.26432 | AJ43: 20218.45407 | AK43: 357580.4761 | AL43: 24010.50532 | AM43: 34733.58585 | AN43: 1654129.189 | AO43: 111070.0397 | AP43: 541079.5432 | BA43: 1.25 | BB43: 0.5
A44: 74 | B44: 41 | C44: 1.25 | D44: 724195.265 | E44: 949505.6999 | F44: 415982.5754 | G44: 415982.5754 | H44: 666736.6103 | I44: 666736.6103 | J44: 666736.6103 | K44: 396018.6791 | L44: 396018.6791 | M44: 396018.6791 | N44: 0.025 | O44: 108629.2897 | P44: 6638306.898 | Q44: 454497.7954 | S44: 21574.88827 | T44: 402553.7441 | U44: 27561.21282 | V44: 36209.76325 | W44: 2212768.966 | X44: 151499.2651 | Y44: 575079.157 | AA44: 0.7940940584 | AB44: 0.6275901229 | AC44: 0.8034875853 | AE44: 396018.6791 | AF44: 346516.3442 | AG44: 346516.3442 | AH44: 1233571.721 | AI44: 84457.62391 | AJ44: 21574.88827 | AK44: 402553.7441 | AL44: 27561.21282 | AM44: 36209.76325 | AN44: 1801578.393 | AO44: 123346.7238 | AP44: 581881.9047 | BA44: 1.25 | BB44: 0.5
A45: 75 | B45: 42 | C45: 1.25 | D45: 754973.5637 | E45: 973243.3423 | F45: 426382.1398 | G45: 426382.1398 | H45: 695072.9163 | I45: 695072.9163 | J45: 695072.9163 | K45: 405919.146 | L45: 405919.146 | M45: 405919.146 | N45: 0.025 | O45: 113246.0346 | P45: 7198342.99 | Q45: 503184.0418 | S45: 23001.39968 | T45: 451960.6118 | U45: 31593.29413 | V45: 37748.67819 | W45: 2399447.663 | X45: 167728.0139 | Y45: 605240.4541 | AA45: 0.801671056 | AB45: 0.6664922667 | AC45: 0.8291887749 | AE45: 405919.146 | AF45: 365327.2314 | AG45: 365327.2314 | AH45: 1316837.812 | AI45: 92050.5974 | AJ45: 23001.39968 | AK45: 451960.6118 | AL45: 31593.29413 | AM45: 37748.67819 | AN45: 1960501.726 | AO45: 137044.4815 | AP45: 626015.6044 | BA45: 1.25 | BB45: 0.5
A46: 76 | B46: 43 | C46: 1.25 | D46: 787059.9402 | E46: 997574.4259 | F46: 437041.6933 | G46: 437041.6933 | H46: 724613.5152 | I46: 724613.5152 | J46: 724613.5152 | K46: 416067.1247 | L46: 416067.1247 | M46: 416067.1247 | N46: 0.025 | O46: 118058.991 | P46: 7800939.408 | Q46: 557553.0044 | S46: 24501.27728 | T46: 506172.5666 | U46: 36177.44229 | V46: 39352.99701 | W46: 2600313.136 | X46: 185851.0015 | Y46: 638095.5685 | AA46: 0.8107331296 | AB46: 0.7083996732 | AC46: 0.8561876502 | AE46: 416067.1247 | AF46: 384862.0903 | AG46: 384862.0903 | AH46: 1405724.364 | AI46: 100470.6999 | AJ46: 24501.27728 | AK46: 506172.5666 | AL46: 36177.44229 | AM46: 39352.99701 | AN46: 2131738.348 | AO46: 152360.7682 | AP46: 673871.0007 | BA46: 1.25 | BB46: 0.5
A47: 77 | B47: 44 | C47: 1.25 | D47: 820509.9876 | E47: 1022513.787 | F47: 447967.7356 | G47: 447967.7356 | H47: 755409.5896 | I47: 755409.5896 | J47: 755409.5896 | K47: 426468.8028 | L47: 426468.8028 | M47: 426468.8028 | N47: 0.025 | O47: 123076.4981 | P47: 8449171.186 | Q47: 618418.1507 | S47: 26077.95764 | T47: 565589.5613 | U47: 41397.06047 | V47: 41025.49938 | W47: 2816390.395 | X47: 206139.3836 | Y47: 674005.2469 | AA47: 0.8214467307 | AB47: 0.7536997234 | AC47: 0.8846990028 | AE47: 426468.8028 | AF47: 405145.3627 | AG47: 405145.3627 | AH47: 1500610.759 | AI47: 109833.8417 | AJ47: 26077.95764 | AK47: 565589.5613 | AL47: 41397.06047 | AM47: 41025.49938 | AN47: 2316186.809 | AO47: 169528.103 | AP47: 725904.3678 | BA47: 1.25 | BB47: 0.5
A48: 78 | B48: 45 | C48: 1.25 | D48: 855381.6621 | E48: 1048076.631 | F48: 459166.929 | G48: 459166.929 | H48: 787514.4972 | I48: 787514.4972 | J48: 787514.4972 | K48: 437130.5229 | L48: 437130.5229 | M48: 437130.5229 | N48: 0.025 | O48: 128307.2493 | P48: 9146329.515 | Q48: 686743.4592 | S48: 27735.03132 | T48: 630642.0867 | U48: 47351.16173 | V48: 42769.08311 | W48: 3048776.505 | X48: 228914.4864 | Y48: 713396.171 | AA48: 0.8340091945 | AB48: 0.8028503411 | AC48: 0.9149749186 | AE48: 437130.5229 | AF48: 426202.2598 | AG48: 426202.2598 | AH48: 1601901.985 | AI48: 120277.2881 | AJ48: 27735.03132 | AK48: 630642.0867 | AL48: 47351.16173 | AM48: 42769.08311 | AN48: 2514809.177 | AO48: 188822.057 | AP48: 782652.7667 | BA48: 1.25 | BB48: 0.5
A49: 79 | B49: 46 | C49: 1.25 | D49: 891735.3828 | E49: 1074278.547 | F49: 470646.1022 | G49: 470646.1022 | H49: 820983.8633 | I49: 820983.8633 | J49: 820983.8633 | K49: 448058.786 | L49: 448058.786 | M49: 448058.786 | N49: 0.025 | O49: 133760.3074 | P49: 9895936.7 | Q49: 763679.3242 | S49: 29476.24964 | T49: 701793.3924 | U49: 54158.0974 | V49: 44586.76914 | W49: 3298645.567 | X49: 254559.7747 | Y49: 756776.6581 | AA49: 0.8486560842 | AB49: 0.8563967955 | AC49: 0.9473137166 | AE49: 448058.786 | AF49: 448058.786 | AG49: 448058.786 | AH49: 1710030.369 | AI49: 131964.7524 | AJ49: 29476.24964 | AK49: 701793.3924 | AL49: 54158.0974 | AM49: 44586.76914 | AN49: 2728635.444 | AO49: 210571.5239 | AP49: 844753.1597 | BA49: 1.25 | BB49: 0.5
A50: 80 | B50: 47 | C50: 1.25 | D50: 929634.1365 | E50: 1101135.511 | F50: 482412.2548 | G50: 482412.2548 | H50: 855875.6775 | I50: 855875.6775 | J50: 855875.6775 | K50: 459260.2556 | L50: 459260.2556 | M50: 459260.2556 | N50: 0.025 | O50: 139445.1205 | P50: 10701762.14 | Q50: 850609.2338 | S50: 31305.53172 | T50: 779541.8633 | U50: 61960.40411 | V50: 46481.70683 | W50: 3567254.047 | X50: 283536.4113 | Y50: 804757.071 | AA50: 0.8656707401 | AB50: 0.9149935446 | AC50: 0.9697210034 | AE50: 459260.2556 | AF50: 459260.2556 | AG50: 459260.2556 | AH50: 1825457.419 | AI50: 145093.0151 | AJ50: 31305.53172 | AK50: 779541.8633 | AL50: 61960.40411 | AM50: 46481.70683 | AN50: 2958768.241 | AO50: 235172.0729 | AP50: 901485.7477 | BA50: 1.25 | BB50: 0.5
A52: Hire Age | B52: Start Salary | C52: interest | D52: inflation | E52: Minimum retirement age | F52: Age Factor | G52: UC Pension COLA | H52: 2nd Choice Start Must be between 5 and 10 years | I52: Annuity End Age | Q52: Faculty = 1 or Staff (Faculty=0)
A53: =Home_Page!D4 -> 33 | B53: =Home_Page!D6 -> 100000 | C53: =Home_Page!I3/100 -> 0.0675 | D53: =Home_Page!I5/100 -> 0.025 | E53: =Home_Page!D9 -> 65 | F53: =0.018 + IF(AND($E$53>60,$E$53<65),0.0014*($E$53-60)) + IF($E$53>64,(0.025-0.018),0) -> 0.025 | G53: =MIN(D53,IF(D53<0.04,0.02,MIN(0.06,(0.02+0.75*(D53-0.04))))) -> 0.02 | H53: =Home_Page!I7 -> 6 | I53: =Home_Page!I10 -> 100 | J53: Cells in Blue on this row should only be changed on the Home Page | Q53: =IF(Home_Page!$D$3="YES",1,0) -> 1
A55: Entries in the next 5 rows, except for Row 57, should not be changed
A56: 0.08 | B56: UC contribution to savings
A57: =(Home_Page!$I$2)/100 -> 0.07 | B57: UC Employee contribution to savings from Cell I2 on the Home Page
A58: =VLOOKUP($E$53,A3:D50,4) -> 497933.2275 | B58: Salary at retirement age (in cell $e$53)
C59: =(1+$C$53)^(1/12) -> 1.00545813 | D59: Annual rate of return corresponding to receiving monthly savings increments
C60: =C59^11+C59^10+C59^9+C59^8+C59^7+C59^6+C59^5+C59^4+C59^3+C59^2+C59+1 -> 12.36687187 | D60: Used to accumulate monthly savings increments
A62: Each row corresponds to the situation at the start of the year for stock variables like savings balances
A63: Columns Q, Y, and AP give the expected annual payout from Savings Choice, Pension Choice, and Second Choice (with election at service year in cell $H$53)
A64: Each row from Service year 1 - 34 corresponds to separating at age given in row A and retiring at age Max(Age, Minimum Retirement Age in cell $E$53)
A65: All savings balances are converted to an annuity starting at Max(age in Col A, minimum retirement age in Cell $E$53) and ending at age in Cell $I$53 with payouts growing at the UC Pension COLA rate in cell $G$53
A66: The Replacement Ratios give the ratio of the pension payouts to projected UC salary in column D
A68: Full descriptions of each column are given in:
A69: https://senate.universityofcalifornia.edu/_files/committees/tfir/excel-sheet-description.pdf
